bitfinex/quotes_BTCUSD_20250123
["timestamp","ask_amount","ask_price","bid_price","bid_amount"]
[1737670300032,0.00099462,103680.0,103670.0,0.86939154]
[1737670300438,0.00099462,103680.0,103670.0,0.88229683]
[1737670301394,0.00099462,103680.0,103670.0,1.14553683]
[1737670302207,0.00086662,103680.0,103670.0,1.15085604]
[1737670303292,0.00058137,103680.0,103670.0,1.15912924]
[1737670303711,0.02841434,103710.0,103700.0,0.439276]
[1737670303953,0.02841434,103710.0,103700.0,0.53662329]
[1737670304366,0.02841434,103710.0,103700.0,0.78662329]
[1737670304568,0.00049242,103720.0,103700.0,0.78662329]
[1737670304775,0.02541607,103720.0,103710.0,0.09734729]
[1737670305375,0.02541607,103720.0,103710.0,0.34734729]
[1737670305778,0.02541607,103720.0,103710.0,0.49734729]
[1737670305926,0.00871443,103720.0,103710.0,0.50113178]
[1737670306335,0.03363808,103720.0,103710.0,0.25113178]
[1737670306572,0.08851443,103720.0,103710.0,0.25113178]
[1737670306772,0.11343808,103720.0,103710.0,0.25113178]
[1737670307202,0.14136456,103720.0,103710.0,0.25113178]
[1737670308212,0.11644091,103720.0,103710.0,0.25113178]
[1737670308578,0.14136456,103720.0,103710.0,0.25113178]
[1737670308756,0.08851443,103720.0,103710.0,0.25113178]
[1737670308901,0.08822918,103720.0,103710.0,0.25113178]
[1737670309750,0.11315283,103720.0,103710.0,0.25113178]
[1737670310973,0.11315283,103720.0,103710.0,0.25142956]
[1737670311126,0.11329463,103720.0,103710.0,0.25142956]
[1737670311548,0.00857098,103720.0,103710.0,0.34785156]
[1737670311936,0.00857098,103720.0,103710.0,0.25142956]
[1737670312177,0.03349463,103720.0,103710.0,0.25142956]
[1737670312397,0.03320938,103720.0,103710.0,0.25142956]
[1737670312967,0.11370938,103720.0,103710.0,0.25142956]
[1737670313191,0.11342413,103720.0,103710.0,0.25142956]
[1737670313783,0.11313888,103720.0,103710.0,0.25142956]
[1737670314514,0.08821523,103720.0,103710.0,0.25142956]
[1737670314730,0.11313888,103720.0,103710.0,0.25142956]
[1737670315172,0.08821523,103720.0,103710.0,0.25142956]
[1737670317049,0.08792998,103720.0,103710.0,0.25142956]
[1737670317247,0.27974298,103720.0,103710.0,0.10142956]
[1737670317463,0.27974298,103720.0,103680.0,0.0005705]
[1737670317464,0.096441,103690.0,103680.0,0.0005705]
[1737670317659,0.281911,103690.0,103680.0,0.09734729]
[1737670317868,0.096459,103670.0,103660.0,0.038582]
[1737670318077,0.02492365,103650.0,103640.0,0.00028525]
[1737670318300,0.10092365,103650.0,103640.0,0.00028525]
[1737670318514,0.19740165,103650.0,103640.0,0.00028525]
[1737670318755,0.230548,103650.0,103640.0,0.09763254]
[1737670319201,0.230548,103650.0,103640.0,0.00077767]
[1737670319404,0.280548,103650.0,103640.0,0.00077767]
[1737670319603,0.12143065,103620.0,103600.0,0.00029757]
[1737670319804,0.12143065,103620.0,103610.0,0.09734729]
[1737670320435,0.12143065,103620.0,103600.0,0.00044523]
[1737670320436,0.12143865,103610.0,103600.0,0.00044523]
[1737670320587,0.02492365,103610.0,103600.0,0.09779252]
[1737670320805,0.10152365,103620.0,103600.0,0.09779252]
[1737670320974,0.10152365,103620.0,103610.0,0.09734729]
[1737670321180,0.10152365,103620.0,103610.0,0.25228689]
[1737670321377,0.0766,103620.0,103610.0,0.25228689]
[1737670321798,0.173106,103620.0,103610.0,0.15760369]
[1737670321998,0.173106,103620.0,103610.0,0.00760369]
[1737670322613,0.08478108,103620.0,103610.0,0.10495098]
[1737670322843,0.08478108,103620.0,103610.0,0.25495098]
[1737670323048,0.00818108,103620.0,103610.0,0.25495098]
[1737670323247,0.096506,103620.0,103610.0,0.10495098]
[1737670323454,0.482503,103630.0,103610.0,0.10495098]
[1737670323712,0.096506,103620.0,103610.0,0.10495098]
[1737670323876,0.482504,103630.0,103610.0,0.10495098]
[1737670324252,0.096506,103620.0,103610.0,0.00760369]
[1737670324659,0.00838219,103640.0,103610.0,0.00760369]
[1737670325005,0.03595104,103710.0,103700.0,0.14150835]
[1737670325217,0.03595104,103710.0,103700.0,0.25201564]
[1737670325433,0.03595104,103710.0,103700.0,0.47782287]
[1737670325857,0.03595104,103710.0,103700.0,0.45782287]
[1737670326069,0.03595104,103710.0,103700.0,0.47782287]
[1737670326299,0.03644346,103710.0,103700.0,0.47782287]
[1737670326501,0.03644346,103710.0,103700.0,0.50082287]
[1737670327324,0.03644346,103710.0,103700.0,0.47782287]
[1737670327541,0.03644346,103710.0,103700.0,0.38782287]
[1737670327742,0.03644346,103710.0,103700.0,0.47782287]
[1737670327951,0.00049242,103710.0,103700.0,0.36958652]
[1737670328362,0.00049242,103710.0,103700.0,0.61958652]
[1737670328568,0.00049242,103710.0,103700.0,0.64466287]
[1737670329193,0.00049242,103710.0,103700.0,0.49466287]
[1737670329408,0.00049242,103710.0,103700.0,0.47466287]
[1737670329609,0.00049242,103710.0,103700.0,0.61958652]
[1737670329813,0.00049242,103710.0,103700.0,0.54823087]
[1737670330015,0.00049242,103710.0,103700.0,0.64466287]
[1737670330451,0.00049242,103710.0,103700.0,0.39466287]
[1737670331045,0.00049242,103710.0,103700.0,0.36958652]
[1737670331460,0.00049242,103710.0,103700.0,0.12823087]
[1737670331671,0.00049242,103710.0,103700.0,0.25315452]
[1737670331868,0.00049242,103710.0,103700.0,0.27823087]
[1737670332699,0.00049242,103710.0,103700.0,0.25315452]
[1737670332909,0.00049242,103710.0,103700.0,0.27823087]
[1737670333108,0.00049242,103710.0,103700.0,0.39466287]
[1737670333311,0.00049242,103710.0,103700.0,0.64466287]
[1737670333721,0.00049242,103710.0,103700.0,0.61958652]
[1737670334757,0.00049242,103710.0,103700.0,0.52823087]
[1737670334961,0.00063442,103710.0,103700.0,0.37823087]
[1737670335364,1.50063442,103710.0,103700.0,0.27823087]
[1737670335725,1.59705642,103710.0,103700.0,0.10315452]
[1737670335936,1.59705642,103710.0,103700.0,0.00580723]
[1737670336828,1.50063442,103710.0,103700.0,0.10523818]
[1737670337034,0.00063442,103710.0,103700.0,0.10523818]
[1737670337203,0.09705642,103710.0,103700.0,0.00789089]
[1737670337484,1.59705642,103710.0,103700.0,0.00789089]
[1737670338701,0.096459,103680.0,103650.0,0.27]
[1737670338902,0.096459,103670.0,103660.0,0.09734729]
[1737670339199,0.096459,103670.0,103660.0,0.24734729]
[1737670339419,0.289367,103680.0,103660.0,0.12242364]
[1737670339628,0.096459,103670.0,103660.0,0.09734729]
[1737670341648,0.096478,103650.0,103630.0,0.29507635]
[1737670341851,0.289455,103650.0,103640.0,0.09734729]
[1737670342289,0.289455,103650.0,103640.0,0.10101401]
[1737670342601,0.289455,103650.0,103640.0,0.00366672]
[1737670343198,1.789455,103650.0,103640.0,0.00366672]
[1737670343806,0.289455,103650.0,103640.0,0.00366672]
[1737670344377,0.096486,103650.0,103640.0,0.10101401]
[1737670344978,0.096486,103650.0,103640.0,0.00366672]
[1737670345190,0.154556,103650.0,103640.0,0.00366672]
[1737670346203,0.154556,103650.0,103640.0,0.00543585]
[1737670346643,0.154556,103650.0,103640.0,0.00573468]
[1737670348399,0.154556,103650.0,103630.0,0.00014766]
[1737670348400,0.12141065,103640.0,103630.0,0.00014766]
[1737670348613,0.096487,103640.0,103630.0,0.00014766]
[1737670349811,0.096487,103640.0,103630.0,0.09749495]
[1737670350434,0.77839682,103650.0,103630.0,0.09749495]
[1737670350435,0.19948182,103650.0,103630.0,0.09749495]
[1737670350676,0.096487,103640.0,103630.0,0.09749495]
[1737670351473,0.096487,103640.0,103630.0,0.00014766]
[1737670355321,0.154557,103640.0,103630.0,0.00014766]
[1737670356111,0.347596,103620.0,103600.0,0.00029757]
[1737670356311,0.347596,103620.0,103610.0,0.09734729]
[1737670356837,0.347596,103620.0,103610.0,0.12242364]
[1737670357034,0.347596,103620.0,103610.0,0.09734729]
[1737670358047,0.096515,103610.0,103600.0,0.15029757]
[1737670358251,0.096515,103610.0,103600.0,0.27272121]
[1737670358400,0.540623,103620.0,103600.0,0.27272121]
[1737670358600,0.540621,103620.0,103600.0,0.27272121]
[1737670359404,0.444112,103620.0,103600.0,0.24764486]
[1737670359648,0.44411,103620.0,103600.0,0.27272121]
[1737670359851,0.44411,103620.0,103600.0,0.00029757]
[1737670359852,0.282985,103610.0,103600.0,0.00029757]
[1737670361479,0.202385,103610.0,103600.0,0.00029757]
[1737670363312,1.702385,103610.0,103600.0,0.00029757]
[1737670364321,0.202385,103610.0,103600.0,0.00029757]
[1737670370201,0.52187958,103610.0,103600.0,0.00029757]
[1737670370424,0.096534,103590.0,103580.0,0.00998916]
[1737670370619,0.154604,103590.0,103580.0,0.00998916]
[1737670370826,0.154604,103590.0,103580.0,0.01048206]
[1737670371820,0.235104,103590.0,103580.0,0.01048206]
[1737670373982,0.24175888,103590.0,103580.0,0.01048206]
[1737670374186,0.36210617,103590.0,103580.0,0.01048206]
[1737670374387,0.38702982,103590.0,103580.0,0.01048206]
[1737670374610,0.095061,103540.0,103530.0,0.25029862]
[1737670374810,0.444388,103550.0,103530.0,0.34764591]
[1737670375014,0.096581,103540.0,103530.0,0.34764591]
[1737670375175,0.482896,103550.0,103530.0,0.37272226]
[1737670375380,0.482896,103550.0,103530.0,0.12272226]
[1737670375578,0.482783,103570.0,103540.0,0.38708329]
[1737670375805,0.289661,103570.0,103550.0,0.17507635]
[1737670375986,0.0970456,103570.0,103560.0,0.09734729]
[1737670376953,0.10353362,103570.0,103560.0,0.09734729]
[1737670377270,0.00697962,103570.0,103560.0,0.09734729]
[1737670377676,0.00697962,103570.0,103560.0,0.19390929]
[1737670377800,0.00697962,103570.0,103560.0,0.09734729]
[1737670379547,0.0004916,103570.0,103560.0,0.46428564]
[1737670380518,0.0004916,103570.0,103560.0,0.44428564]
[1737670380738,0.0004916,103570.0,103560.0,0.24734729]
[1737670381249,0.0970446,103570.0,103560.0,0.24734729]
[1737670383268,1.5970446,103570.0,103560.0,0.24748969]
[1737670383442,1.5004916,103570.0,103560.0,0.24748969]
[1737670383661,1.5970446,103570.0,103560.0,0.24748969]
[1737670384284,1.5970446,103570.0,103560.0,0.1501424]
[1737670387321,0.0970446,103570.0,103560.0,0.1501424]
[1737670387493,0.19439189,103570.0,103560.0,0.0001424]
[1737670387857,0.096581,103540.0,103530.0,0.00029862]
[1737670388109,0.386309,103550.0,103530.0,0.09764591]
[1737670388311,0.096581,103540.0,103530.0,0.00029862]
[1737670389158,0.21692829,103540.0,103530.0,0.00029862]
[1737670389361,0.096581,103540.0,103530.0,0.00029862]
[1737670391951,0.11585829,103540.0,103530.0,0.00029862]
[1737670392406,0.096581,103540.0,103530.0,0.15029862]
[1737670392623,0.637538,103550.0,103530.0,0.27272226]
[1737670392624,0.482885,103550.0,103530.0,0.27272226]
[1737670393038,0.29713011,103550.0,103530.0,0.36931226]
[1737670393833,0.49028511,103550.0,103530.0,0.36931226]
[1737670393998,0.096581,103540.0,103530.0,0.24764591]
[1737670394348,1.99028611,103550.0,103530.0,0.34423591]
[1737670394567,0.096581,103540.0,103530.0,0.24764591]
[1737670394806,0.096581,103540.0,103530.0,0.00029862]
[1737670398194,0.193182,103530.0,103500.0,0.38674357]
[1737670398421,0.482966,103530.0,103510.0,0.09734729]
[1737670398805,0.096599,103520.0,103510.0,0.09734729]
[1737670399486,0.096599,103520.0,103510.0,0.09749034]
[1737670400303,0.154669,103520.0,103510.0,0.09749034]
[1737670401037,0.154669,103520.0,103510.0,0.00014305]
[1737670402301,0.054669,103520.0,103510.0,0.00014305]
[1737670402514,0.772764,103530.0,103520.0,0.096599]
[1737670402515,0.051268,103530.0,103520.0,0.096599]
[1737670402738,0.154654,103540.0,103530.0,0.15]
[1737670402936,0.05807,103540.0,103530.0,0.24734729]
[1737670403344,0.19318,103530.0,103510.0,0.22735105]
[1737670403548,0.289775,103530.0,103520.0,0.09734729]
[1737670403982,0.154665,103530.0,103520.0,0.09734729]
[1737670404416,0.154665,103530.0,103520.0,0.09776911]
[1737670404899,0.05807,103530.0,103520.0,0.19436811]
[1737670405105,0.11959,103530.0,103520.0,0.00042182]
[1737670405315,0.096609,103510.0,103500.0,0.00029757]
[1737670405513,0.096609,103510.0,103500.0,0.00044065]
[1737670407338,0.177679,103510.0,103500.0,0.00044065]
[1737670409158,0.096609,103510.0,103500.0,0.00044065]
[1737670409517,0.096618,103500.0,103490.0,0.00029841]
[1737670409882,0.177688,103500.0,103490.0,0.00029841]
[1737670410487,0.177707,103480.0,103470.0,0.0001423]
[1737670410708,0.177707,103480.0,103470.0,0.00902276]
[1737670412203,0.096637,103480.0,103470.0,0.00014789]
[1737670412895,0.117446,103500.0,103470.0,0.00014789]
[1737670413079,0.096637,103480.0,103470.0,0.00014789]
[1737670414642,0.096637,103480.0,103470.0,0.15014789]
[1737670415190,0.05807,103490.0,103470.0,0.53742918]
[1737670415422,0.05807,103490.0,103480.0,0.09734729]
[1737670415622,0.05807,103490.0,103480.0,0.19398429]
[1737670415882,0.39364013,103510.0,103490.0,0.15]
[1737670416042,0.096618,103500.0,103490.0,0.15]
[1737670416244,0.154688,103500.0,103490.0,0.15]
[1737670416653,0.05807,103500.0,103490.0,0.15]
[1737670416852,0.05807,103500.0,103490.0,0.34397429]
[1737670417053,0.00718913,103510.0,103490.0,0.53720929]
[1737670417278,0.14391875,103550.0,103520.0,0.17]
[1737670417481,0.24049175,103550.0,103540.0,0.15]
[1737670417703,0.154641,103550.0,103540.0,0.24734729]
[1737670417851,0.154641,103550.0,103540.0,0.15]
[1737670417852,0.16172072,103550.0,103540.0,0.15]
[1737670418496,0.35501423,103550.0,103530.0,0.24659]
[1737670418829,0.54816023,103550.0,103530.0,0.24734729]
[1737670419548,0.16186823,103550.0,103530.0,0.53711229]
[1737670419755,0.06529723,103550.0,103530.0,0.73027729]
[1737670419952,0.00722723,103550.0,103540.0,0.19392829]
[1737670421036,0.00752669,103550.0,103540.0,0.19392829]
[1737670426438,0.00752669,103550.0,103540.0,0.21392829]
[1737670426684,0.00044697,103550.0,103540.0,0.21392829]
[1737670427284,0.00044697,103550.0,103540.0,0.66392829]
[1737670427642,0.00044697,103550.0,103540.0,0.71952829]
[1737670427904,0.00044697,103550.0,103540.0,0.81592829]
[1737670428105,0.00029925,103560.0,103550.0,0.399171]
[1737670428317,0.00079185,103560.0,103550.0,0.44651829]
[1737670429500,0.00079185,103560.0,103550.0,0.69651829]
[1737670432599,0.00079185,103560.0,103550.0,0.71601952]
[1737670436476,0.00079185,103560.0,103550.0,0.76601952]
[1737670437071,0.00079185,103560.0,103550.0,0.71601952]
[1737670437505,0.00079185,103560.0,103550.0,0.72897952]
[1737670438181,0.00079185,103560.0,103550.0,0.77897952]
[1737670441434,3.1e-07,103570.0,103560.0,0.339562]
[1737670441814,3.1e-07,103570.0,103560.0,0.48330929]
[1737670442429,3.1e-07,103570.0,103560.0,0.73330929]
[1737670442637,3.1e-07,103570.0,103560.0,0.75330929]
[1737670444005,5.3e-07,103570.0,103560.0,0.75330929]
[1737670444806,5.3e-07,103570.0,103560.0,0.75345179]
[1737670445024,7.8e-07,103570.0,103560.0,0.75345179]
[1737670445233,7.8e-07,103570.0,103560.0,0.76641179]
[1737670448424,7.8e-07,103570.0,103560.0,0.77352389]
[1737670449330,7.8e-07,103570.0,103560.0,0.80294353]
[1737670451567,0.10366904,103630.0,103610.0,0.213025]
[1737670451787,0.00772746,103630.0,103620.0,0.34385329]
[1737670452073,0.00772746,103630.0,103620.0,0.36385329]
[1737670453261,0.00772746,103630.0,103620.0,0.61385329]
[1737670453460,0.00772746,103630.0,103620.0,0.34734729]
[1737670453687,0.16229446,103630.0,103620.0,0.34734729]
[1737670454086,0.06579746,103630.0,103620.0,0.49734729]
[1737670454409,0.16229446,103630.0,103620.0,0.09734729]
[1737670454663,0.347599,103620.0,103590.0,0.73265]
[1737670454894,0.0774,103610.0,103600.0,0.19387029]
[1737670455090,0.0774,103610.0,103600.0,0.15]
[1737670455091,0.13547,103610.0,103600.0,0.15]
[1737670455316,0.0774,103610.0,103600.0,0.34387229]
[1737670455539,0.07731176,103610.0,103600.0,0.34387229]
[1737670457070,0.13538176,103610.0,103600.0,0.24734729]
[1737670457276,0.23189676,103610.0,103600.0,0.24734729]
[1737670457468,0.28958,103600.0,103580.0,0.096542]
[1737670457605,0.34765,103600.0,103580.0,0.19388729]
[1737670457820,0.34765,103600.0,103580.0,0.38697329]
[1737670458080,0.34765,103600.0,103590.0,0.15]
[1737670458420,0.34765,103600.0,103590.0,0.15023028]
[1737670458627,0.39385,103600.0,103590.0,0.00023028]
[1737670459085,0.10427,103600.0,103590.0,0.09676428]
[1737670459454,0.10427,103600.0,103590.0,0.00023028]
[1737670459863,0.200795,103600.0,103590.0,0.00023028]
[1737670463507,0.223795,103600.0,103590.0,0.00023028]
[1737670464424,0.304995,103600.0,103590.0,0.00023028]
[1737670467278,0.281995,103600.0,103590.0,0.00023028]
[1737670467797,0.281995,103600.0,103590.0,0.00037278]
[1737670471920,0.289606,103590.0,103570.0,0.15]
[1737670472125,0.096537,103590.0,103580.0,0.09734729]
[1737670472568,0.154607,103590.0,103570.0,0.15]
[1737670472811,0.154607,103590.0,103570.0,0.34389929]
[1737670473289,0.05807,103590.0,103570.0,0.24734729]
[1737670473495,0.00797384,103610.0,103600.0,0.15]
[1737670473674,0.00812152,103610.0,103600.0,0.34387229]
[1737670475355,0.00812152,103610.0,103600.0,0.36387229]
[1737670475575,0.00044693,103610.0,103600.0,0.49137229]
[1737670476368,0.00044693,103610.0,103600.0,0.77088429]
[1737670478304,0.00044693,103610.0,103600.0,0.79388429]
[1737670479761,0.00044693,103610.0,103600.0,0.80178143]
[1737670480143,0.00044693,103610.0,103600.0,0.81542819]
[1737670480345,0.00029904,103630.0,103620.0,0.266506]
[1737670480551,0.00029904,103630.0,103620.0,0.36385329]
[1737670481328,0.00029904,103630.0,103620.0,0.61385329]
[1737670482199,0.00029904,103630.0,103620.0,0.6274836]
[1737670484367,0.00778921,103640.0,103630.0,0.246497]
[1737670484567,0.0001424,103650.0,103630.0,0.34384429]
[1737670484783,0.00029005,103650.0,103640.0,0.09734729]
[1737670486848,0.00781055,103650.0,103640.0,0.09734729]
[1737670487049,0.20078055,103650.0,103610.0,0.25]
[1737670487262,0.370705,103630.0,103620.0,0.09734729]
[1737670488084,0.370705,103630.0,103600.0,0.732611]
[1737670488339,0.370705,103630.0,103610.0,0.09734729]
[1737670488921,0.370705,103630.0,103610.0,0.24734729]
[1737670489492,0.370705,103630.0,103610.0,0.34386229]
[1737670489897,0.370705,103630.0,103610.0,0.24734729]
[1737670490098,0.370705,103630.0,103610.0,0.34386229]
[1737670490399,0.05807,103620.0,103610.0,0.34386229]
[1737670490813,0.05807,103620.0,103610.0,0.24734729]
[1737670491019,0.05807,103620.0,103610.0,0.34386229]
[1737670491995,0.05807,103620.0,103610.0,0.24734729]
[1737670492597,0.05807,103620.0,103610.0,0.34386229]
[1737670492954,0.05807,103620.0,103610.0,0.34416112]
[1737670493568,0.06590299,103620.0,103610.0,0.34416112]
[1737670494343,0.06590299,103620.0,103610.0,0.24764612]
[1737670494859,0.06590299,103620.0,103610.0,0.34416112]
[1737670495905,0.06590299,103620.0,103610.0,0.24764612]
[1737670496165,0.0001423,103640.0,103630.0,0.266497]
[1737670496386,0.0001423,103640.0,103630.0,0.36384429]
[1737670497560,0.0001423,103640.0,103630.0,0.34384429]
[1737670497765,0.0001423,103640.0,103630.0,0.36384429]
[1737670498176,0.0001423,103640.0,103630.0,0.34384429]
[1737670498576,0.0001423,103640.0,103630.0,0.56554429]
[1737670498760,1e-08,103640.0,103630.0,0.61490997]
[1737670499364,1e-08,103640.0,103630.0,0.86876997]
[1737670501414,1e-08,103640.0,103630.0,0.88853793]
[1737670501613,1e-08,103640.0,103630.0,0.86853793]
[1737670501820,1e-08,103640.0,103630.0,0.87613468]
[1737670503068,1e-08,103640.0,103630.0,0.89613468]
[1737670503971,0.00029005,103650.0,103640.0,0.359487]
[1737670504143,0.00029005,103650.0,103640.0,0.48619997]
[1737670505361,0.00029005,103650.0,103640.0,0.69619997]
[1737670505568,0.00029005,103650.0,103640.0,0.71619997]
[1737670506000,0.00029005,103650.0,103640.0,0.86629997]
[1737670506001,1e-08,103650.0,103640.0,0.86629997]
[1737670506180,0.00029925,103660.0,103640.0,0.86629997]
[1737670506181,1e-08,103660.0,103650.0,0.359478]
[1737670506428,1e-08,103660.0,103650.0,0.48619097]
[1737670506639,1e-08,103660.0,103650.0,0.46619097]
[1737670506856,0.00021082,103670.0,103660.0,0.02]
[1737670507075,0.17497182,103670.0,103660.0,0.09734729]
[1737670507286,0.17496982,103670.0,103660.0,0.09734729]
[1737670507708,0.096479,103650.0,103630.0,0.27029883]
[1737670507925,0.251042,103650.0,103630.0,0.34764612]
[1737670508139,0.174787,103640.0,103630.0,0.34764612]
[1737670508363,0.174787,103640.0,103630.0,0.09764612]
[1737670509227,0.16746628,103640.0,103630.0,0.00029883]
[1737670509754,0.07097928,103640.0,103630.0,0.09764612]
[1737670510149,0.26189818,103660.0,103630.0,0.24764612]
[1737670510150,0.20450552,103660.0,103630.0,0.24764612]
[1737670510382,0.20450552,103660.0,103590.0,0.0191474]
[1737670510383,0.023,103620.0,103590.0,0.0191474]
[1737670510589,0.227604,103590.0,103580.0,0.07877764]
[1737670510810,0.096571,103550.0,103540.0,0.30128423]
[1737670511010,0.096569,103560.0,103540.0,0.34616935]
[1737670511190,0.17470397,103550.0,103540.0,0.30532145]
[1737670511461,0.25277397,103550.0,103540.0,0.0001426]
[1737670511665,0.174641,103550.0,103540.0,0.02954557]
[1737670511871,0.29498829,103550.0,103540.0,0.0006352]
[1737670512080,0.34575799,103550.0,103540.0,0.0006352]
[1737670512294,0.42395799,103550.0,103540.0,0.0006352]
[1737670512949,0.17466,103530.0,103520.0,0.00029883]
[1737670513182,0.25200729,103530.0,103520.0,0.00044648]
[1737670513431,0.32277699,103530.0,103520.0,0.00044648]
[1737670513664,0.0507697,103530.0,103520.0,0.09779377]
[1737670513881,0.1305,103550.0,103520.0,0.07802729]
[1737670514085,0.1305,103550.0,103490.0,0.0001423]
[1737670514086,0.1325,103500.0,103490.0,0.0001423]
[1737670514305,0.1325,103500.0,103460.0,0.0001423]
[1737670514306,0.096646,103470.0,103460.0,0.0001423]
[1737670514512,0.096655,103460.0,103450.0,0.00010231]
[1737670514725,1.83694997,103460.0,103450.0,0.00018767]
[1737670514956,2.00584997,103460.0,103450.0,0.00014767]
[1737670515159,0.116674,103440.0,103430.0,6.758e-05]
[1737670515366,0.19402129,103440.0,103430.0,0.00056066]
[1737670515570,0.096674,103440.0,103430.0,0.00056066]
[1737670516008,0.269212,103460.0,103430.0,0.00056066]
[1737670516241,0.19402129,103440.0,103430.0,0.00056066]
[1737670516449,0.096683,103430.0,103420.0,0.0001423]
[1737670516655,0.19403029,103430.0,103420.0,0.0001168]
[1737670516863,0.2480014,103430.0,103420.0,4.922e-05]
[1737670517071,0.3010014,103430.0,103420.0,4.922e-05]
[1737670517281,0.146693,103420.0,103410.0,0.0001424]
[1737670517502,0.26704029,103420.0,103410.0,0.00028991]
[1737670517707,0.3813114,103420.0,103410.0,0.00028991]
[1737670518123,0.43993243,103420.0,103410.0,0.00028991]
[1737670518336,0.096711,103400.0,103390.0,0.01513589]
[1737670518547,0.096711,103400.0,103340.0,0.25]
[1737670518548,0.043,103350.0,103340.0,0.25]
[1737670518783,0.26710529,103350.0,103340.0,0.25014789]
[1737670518993,0.21710529,103350.0,103340.0,0.25014789]
[1737670519198,0.19410529,103350.0,103340.0,0.25014789]
[1737670519401,0.19410529,103350.0,103340.0,0.00258619]
[1737670519617,0.26410529,103350.0,103340.0,0.00258619]
[1737670519837,0.26769761,103350.0,103340.0,0.00014789]
[1737670520049,0.29069761,103350.0,103340.0,0.00014789]
[1737670520256,1.79069761,103350.0,103340.0,0.00258619]
[1737670520469,0.29069761,103350.0,103340.0,0.002567]
[1737670520864,1.79069761,103350.0,103340.0,0.002567]
[1737670521070,0.29069761,103350.0,103340.0,0.002567]
[1737670521324,0.26069761,103350.0,103340.0,0.002567]
[1737670521728,0.19410529,103350.0,103340.0,0.002567]
[1737670522152,0.09734729,103350.0,103340.0,0.002567]
[1737670522436,0.02,103400.0,103360.0,0.246741]
[1737670522644,0.02,103400.0,103360.0,0.246748]
[1737670522645,0.39543452,103390.0,103360.0,0.246748]
[1737670522775,0.09734729,103390.0,103370.0,0.246738]
[1737670522980,0.09734729,103390.0,103370.0,0.440217]
[1737670523175,0.09734729,103390.0,103370.0,0.246738]
[1737670523451,0.09734729,103390.0,103370.0,0.15]
[1737670523866,0.09734729,103390.0,103370.0,0.246738]
[1737670524158,0.37598975,103400.0,103390.0,0.246721]
[1737670524159,0.08584875,103400.0,103390.0,0.246721]
[1737670524393,0.096666,103450.0,103420.0,0.096688]
[1737670524596,0.2988602,103440.0,103390.0,0.22044729]
[1737670524800,0.096686,103430.0,103400.0,0.096708]
[1737670525006,0.096686,103430.0,103400.0,0.246708]
[1737670525007,0.09734729,103430.0,103400.0,0.246708]
[1737670525207,0.290039,103440.0,103410.0,0.2467]
[1737670525384,0.38738629,103440.0,103410.0,0.2467]
[1737670525723,0.49141579,103450.0,103420.0,0.246691]
[1737670525929,0.00805779,103450.0,103430.0,0.15]
[1737670526135,0.096674,103440.0,103430.0,0.15]
[1737670526359,0.48400729,103450.0,103430.0,0.15]
[1737670526556,0.58067729,103450.0,103430.0,0.15]
[1737670526787,0.096674,103440.0,103430.0,0.15]
[1737670527123,0.096674,103440.0,103420.0,0.15]
[1737670527332,0.38734729,103450.0,103420.0,0.24669]
[1737670527537,0.20157571,103460.0,103430.0,0.096682]
[1737670527538,0.29823671,103460.0,103430.0,0.096682]
[1737670527762,0.105599,103460.0,103420.0,0.44071829]
[1737670527957,0.00825171,103460.0,103450.0,0.15]
[1737670528163,0.096651,103470.0,103450.0,0.15]
[1737670528358,0.38729129,103470.0,103450.0,0.15]
[1737670528995,0.096651,103470.0,103450.0,0.15]
[1737670529198,0.00049147,103470.0,103450.0,0.439989]
[1737670529352,0.00864543,103470.0,103450.0,0.246661]
[1737670529561,0.00049147,103470.0,103460.0,0.47020229]
[1737670529757,0.00049147,103470.0,103460.0,0.49020229]
[1737670529961,0.193164,103540.0,103490.0,0.193236]
[1737670530204,0.193164,103540.0,103500.0,0.34395829]
[1737670530205,0.096592,103530.0,103500.0,0.34395829]
[1737670530407,0.20130093,103540.0,103500.0,0.44058329]
[1737670530626,0.096595,103530.0,103510.0,0.15]
[1737670530828,0.20129893,103540.0,103510.0,0.24734729]
[1737670531037,0.29788593,103540.0,103510.0,0.34395529]
[1737670531364,0.096593,103530.0,103510.0,0.15]
[1737670531575,0.58840822,103540.0,103510.0,0.15]
[1737670532463,0.29864622,103540.0,103510.0,0.246608]
[1737670532701,0.39523322,103540.0,103510.0,0.246608]
[1737670532962,0.096592,103530.0,103510.0,0.15]
[1737670533698,0.24359597,103550.0,103540.0,0.096581]
[1737670533699,0.00044697,103550.0,103540.0,0.096581]
[1737670533993,0.00044697,103550.0,103540.0,0.34392829]
[1737670534434,0.00044697,103550.0,103540.0,0.59392829]
[1737670535113,0.00044697,103550.0,103540.0,0.4]
[1737670535258,0.00044697,103550.0,103540.0,0.246581]
[1737670536289,0.00044697,103550.0,103540.0,0.15]
[1737670536483,1.50044697,103550.0,103540.0,0.15]
[1737670537318,0.00044697,103550.0,103540.0,0.246581]
[1737670538177,0.00044697,103550.0,103540.0,0.34392829]
[1737670538382,0.00044697,103550.0,103540.0,0.59392829]
[1737670539303,0.00044697,103550.0,103540.0,0.496581]
[1737670539508,0.00044697,103550.0,103540.0,0.4]
[1737670539923,0.22164172,103580.0,103570.0,0.096553]
[1737670539924,0.00029946,103580.0,103570.0,0.096553]
[1737670540127,0.00029946,103580.0,103570.0,0.24734729]
[1737670540128,0.00079206,103580.0,103570.0,0.24734729]
[1737670540376,0.00079206,103580.0,103570.0,0.15]
[1737670540544,0.00079206,103580.0,103570.0,0.246553]
[1737670542508,0.00079206,103580.0,103570.0,0.34390029]
[1737670543143,0.00794046,103610.0,103580.0,0.22]
[1737670543357,0.01154844,103630.0,103590.0,0.26014729]
[1737670543575,0.01169624,103630.0,103620.0,0.246506]
[1737670543996,0.01169624,103630.0,103620.0,0.34385329]
[1737670544211,0.01169624,103630.0,103620.0,0.47325329]
[1737670544427,0.01572463,103640.0,103630.0,0.339497]
[1737670544647,0.00029946,103650.0,103640.0,0.166487]
[1737670544865,0.00029946,103650.0,103640.0,0.44082996]
[1737670545070,0.00029946,103650.0,103640.0,0.46382996]
[1737670546496,0.00029946,103650.0,103640.0,0.68683429]
[1737670546949,0.00029904,103680.0,103660.0,0.05]
[1737670547142,0.08414989,103710.0,103700.0,0.214132]
[1737670547348,0.06739563,103710.0,103700.0,0.53147929]
[1737670547663,0.01945076,103710.0,103700.0,0.59377665]
[1737670548069,0.0001418,103720.0,103710.0,0.316422]
[1737670548267,0.00028951,103720.0,103710.0,0.43676929]
[1737670548479,0.00028951,103720.0,103710.0,0.4626819]
[1737670548843,0.00028951,103720.0,103710.0,0.43676929]